fUST/lending_fUST_20251231
["ID","MTS","AMOUNT","RATE_DAILY","PERIOD"]
[400165481,1767164167434,-1114.57237966,0.00011409,2]
[400165482,1767164167470,-500.0,0.00011409,2]
[400165483,1767164167509,-500.0,0.00011409,2]
[400165484,1767164167540,-157.45895339,0.00011409,2]
[400165485,1767164167570,-496.81715166,0.00011409,2]
[400165486,1767164167603,-500.0,0.00011409,2]
[400165487,1767164167636,-500.0,0.00011409,2]
[400165488,1767164169139,-500.0,0.00011409,2]
[400165489,1767164169171,-500.0,0.00011409,2]
[400165490,1767164169201,-503.96837946,0.00011409,2]
[400165491,1767164169233,-500.0,0.00011409,2]
[400165492,1767164169270,-197.59124459,0.00011409,2]
[400165493,1767164169307,-500.0,0.00011409,2]
[400165494,1767164169338,-500.0,0.00011409,2]
[400165495,1767164169371,-500.0,0.00011409,2]
[400165496,1767164169405,-500.0,0.00011409,2]
[400165497,1767164169440,-500.0,0.00011409,2]
[400165498,1767164169475,-96.8907519,0.00011409,2]
[400165499,1767164169531,-403.1092481,0.00011409,2]
[400165500,1767164169565,-500.0,0.00011409,2]
[400165501,1767164169597,-500.0,0.00011409,2]
[400165502,1767164169628,-500.0,0.00011409,2]
[400165503,1767164169662,-626.13056477,0.00011409,2]
[400165504,1767164169693,-500.0,0.00011409,2]
[400165505,1767164169732,-500.0,0.00011409,2]
[400165506,1767164169772,-500.0,0.00011409,2]
[400165507,1767164169809,-500.0,0.00011409,2]
[400165508,1767164169849,-441.53037426,0.00011409,2]
[400165509,1767164169924,-58.46962574,0.00011409,2]
[400165510,1767164169965,-200.0,0.00011409,2]
[400165511,1767164170007,-500.0,0.00011409,2]
[400165512,1767164170049,-500.0,0.00011409,2]
[400165513,1767164170091,-500.0,0.00011409,2]
[400165514,1767164170133,-500.0,0.00011409,2]
[400165515,1767164170174,-500.0,0.00011409,2]
[400165516,1767164170216,-500.0,0.00011409,2]
[400165517,1767164170260,-500.0,0.00011409,2]
[400165518,1767164170301,-500.0,0.00011409,2]
[400165519,1767164170342,-500.0,0.00011409,2]
[400165520,1767164170385,-37.54841847,0.00011409,2]
[400165521,1767164170445,-407.97391158,0.00011409,2]
[400165522,1767164170486,-500.0,0.00011409,2]
[400165523,1767164170526,-500.0,0.00011409,2]
[400165524,1767164170567,-500.0,0.00011409,2]
[400165525,1767164170606,-500.0,0.00011409,2]
[400165526,1767164170644,-500.0,0.00011409,2]
[400165527,1767164170681,-1200.0,0.00011409,2]
[400165529,1767164177339,1784.06217684,0.00011409,2]
[400165530,1767164177369,3215.93782316,0.00011409,2]
[400165531,1767164200245,5000.0,0.00011409,2]
[400165532,1767164222798,300.0,0.00011409,2]
[400165533,1767164223277,4700.01,0.00011409,2]
[400165534,1767164223306,299.99,0.00011409,2]
[400165536,1767164246190,5000.0,0.00011409,2]
[400165537,1767164259736,-337.80893867,0.0001141,2]
[400165538,1767164269135,1975.51950479,0.0001141,2]
[400165539,1767164282691,300.0,0.00011409,2]
[400165540,1767164292831,1200.0,0.00011409,2]
[400165542,1767164305905,552.54939687,0.00011409,2]
[400165543,1767164310166,500.0,0.00011409,2]
[400165544,1767164310230,500.0,0.00011409,2]
[400165545,1767164310279,499.4435521,0.00011409,2]
[400165546,1767164313514,488.06942127,0.00011409,2]
[400165547,1767164313553,500.0,0.00011409,2]
[400165548,1767164313602,590.86995952,0.00011409,2]
[400165567,1767164342412,300.0,0.00011409,2]
[400165568,1767164369393,555.86768264,0.0001131,2]
[400165569,1767164372913,4013.2099876,0.00011113,2]
[400165570,1767164373100,380.3193472,0.00011113,2]
[400165572,1767164402262,300.0,0.00011409,2]
[400165573,1767164408835,300.0,0.00011409,2]
[400165574,1767164410768,1200.0,0.00011409,2]
[400165575,1767164412862,151.0,0.0001141,2]
[400165576,1767164416413,151.0,0.0001141,2]
[400165577,1767164417030,151.0,0.0001141,2]
[400165578,1767164417675,151.0,0.0001141,2]
[400165588,1767164462896,300.0,0.00011409,2]
[400165589,1767164503052,387.518,0.00011182,2]
[400165590,1767164522769,300.0,0.00011409,2]
[400165591,1767164544257,151.0,0.000114,2]
[400165592,1767164544597,151.0,0.000113,2]
[400165593,1767164545018,151.0,0.000111,2]
[400165594,1767164545303,151.0,0.00011,2]
[400165596,1767164582519,300.0,0.00011409,2]
[400165597,1767164592821,1200.0,0.00011409,2]
[400165605,1767164702196,300.0,0.00011409,2]
[400165606,1767164708820,298.0,0.00011409,2]
[400165607,1767164710155,1200.0,0.00011409,2]
[400165608,1767164710235,444.69414612,0.0001131,2]
[400165609,1767164762573,300.0,0.00011409,2]
[400165610,1767164783985,190.3949265,0.00010957,2]
[400165611,1767164822947,300.0,0.00011409,2]
[400165612,1767164836143,-657.52357989,0.0001141,2]
[400165618,1767164882567,300.0,0.00011409,2]
[400165619,1767164889893,228.57292632,0.00011409,2]
[400165620,1767164892760,1200.0,0.00011409,2]
[400165621,1767164933955,8271.43707368,0.0001131,2]
[400165622,1767164933984,10000.01,0.0001131,2]
[400165623,1767164934014,10000.01,0.0001131,2]
[400165624,1767164934043,10000.01,0.0001131,2]
[400165625,1767164934072,10000.01,0.0001131,2]
[400165626,1767164934100,10000.01,0.0001131,2]
[400165627,1767164934128,10000.01,0.0001131,2]
[400165628,1767164934156,10000.01,0.0001131,2]
[400165629,1767164934185,10000.01,0.0001131,2]
[400165630,1767164934213,10000.01,0.0001131,2]
[400165631,1767164942520,300.0,0.00011309,2]
[400165634,1767165002738,300.0,0.00011309,2]
[400165635,1767165009905,1200.0,0.00011309,2]
[400165670,1767165031717,-8766.34909898,0.0001131,2]
[400165672,1767165031729,-303.41490542,0.0001131,2]
[400165679,1767165031795,500.0,0.00011309,2]
[400165682,1767165031826,366.89745385,0.00011309,2]
[400165685,1767165031880,687.56219681,0.00011309,2]
[400165686,1767165031957,687.56219681,0.00011309,2]
[400165687,1767165032113,687.56219681,0.00011309,2]
[400165688,1767165032150,369.39986538,0.00011309,2]
[400165689,1767165032181,500.0,0.00011309,2]
[400165690,1767165032215,687.56219681,0.00011309,2]
[400165691,1767165032262,687.56219681,0.00011309,2]
[400165692,1767165032297,687.56219681,0.00011309,2]
[400165693,1767165032334,687.56219681,0.00011309,2]
[400165694,1767165032373,687.56219681,0.00011309,2]
[400165695,1767165032428,500.0,0.00011309,2]
[400165696,1767165032471,463.21510629,0.00011309,2]
[400165697,1767165032628,224.34709052,0.00011309,2]
[400165698,1767165032670,687.56219681,0.00011309,2]
[400165699,1767165032711,687.56219681,0.00011309,2]
[400165700,1767165032744,687.56219681,0.00011309,2]
[400165701,1767165032782,687.56219681,0.00011309,2]
[400165702,1767165032830,687.56219681,0.00011309,2]
[400165703,1767165032871,687.56219681,0.00011309,2]
[400165704,1767165032955,687.56219681,0.00011309,2]
[400165712,1767165037850,-97521.30333452,0.0001131,2]
[400165713,1767165037863,-795137.4055874,0.0001131,2]
[400165715,1767165037872,-579.0,0.0001131,2]
[400165716,1767165037881,-770.92732356,0.00011409,2]
[400165717,1767165037890,-1009.81045584,0.0001141,2]
[400165718,1767165037901,-331.05275989,0.0001141,2]
[400165719,1767165037910,-250.0,0.00011484,2]
[400165720,1767165037921,-151.0,0.000116,2]
[400165721,1767165037934,-300.0,0.00011637,2]
[400165722,1767165037948,-300.0,0.00011637,2]
[400165723,1767165037961,-300.0,0.00011637,2]
[400165724,1767165037974,-300.0,0.00011637,2]
[400165725,1767165037984,-300.0,0.00011637,2]
[400165726,1767165037995,-300.0,0.00011637,2]
[400165727,1767165038008,-300.0,0.00011637,2]
[400165728,1767165038020,-300.0,0.00011637,2]
[400165729,1767165038032,-300.0,0.00011637,2]
[400165730,1767165038045,-300.0,0.00011637,2]
[400165731,1767165038058,-300.0,0.00011637,2]
[400165732,1767165038070,-300.0,0.00011637,2]
[400165733,1767165038082,-300.0,0.00011637,2]
[400165734,1767165038095,-300.0,0.00011637,2]
[400165735,1767165038108,-300.0,0.00011637,2]
[400165736,1767165038121,-600.0,0.00011637,2]
[400165737,1767165038132,-151.0,0.000117,2]
[400165738,1767165038144,-151.0,0.000118,2]
[400165739,1767165038157,-151.0,0.00012,2]
[400165740,1767165038168,-756.7,0.00012096,2]
[400165741,1767165038179,-151.0,0.000121,2]
[400165742,1767165038191,-151.0,0.000123,2]
[400165743,1767165038204,-2675.21,0.00012329,2]
[400165744,1767165038215,-2229.34,0.00012329,2]
[400165745,1767165038227,-1857.78,0.00012329,2]
[400165746,1767165038237,-1548.15,0.00012329,2]
[400165747,1767165038248,-1290.13,0.00012329,2]
[400165748,1767165038260,-1075.11,0.00012329,2]
[400165749,1767165038271,-895.92,0.00012329,2]
[400165750,1767165038282,-746.6,0.00012329,2]
[400165751,1767165038295,-622.17,0.00012329,2]
[400165752,1767165038306,-518.47,0.00012329,2]
[400165753,1767165038322,-432.06,0.00012329,2]
[400165754,1767165038333,-360.05,0.00012329,2]
[400165755,1767165038345,-300.04,0.00012329,2]
[400165756,1767165038359,-250.04,0.00012329,2]
[400165757,1767165038372,-208.36,0.00012329,2]
[400165758,1767165038385,-173.64,0.00012329,2]
[400165759,1767165038397,-868.21,0.00012329,2]
[400165760,1767165038409,-11415.38637508,0.00012389,2]
[400165761,1767165038419,-420.0,0.00012423,2]
[400165762,1767165038434,-610.0,0.0001244,2]
[400165763,1767165038446,-1680.0,0.00012532,2]
[400165764,1767165038458,-1513.39,0.00012672,2]
[400165765,1767165038472,-720.0,0.00012801,2]
[400165766,1767165038484,-413.3,0.00013173,2]
[400165767,1767165038495,-1174.16213624,0.00013207,2]
[400165768,1767165038505,-2270.09,0.00013248,2]
[400165769,1767165038517,-500.0,0.00013273,2]
[400165770,1767165038529,-500.0,0.00013273,2]
[400165771,1767165038542,-500.0,0.00013273,2]
[400165772,1767165038554,-544.63270575,0.00013273,2]
[400165773,1767165038565,-500.0,0.00013273,2]
[400165774,1767165038576,-500.0,0.00013273,2]
[400165775,1767165038587,-500.0,0.00013273,2]
[400165776,1767165038597,-500.0,0.00013273,2]
[400165777,1767165038609,-500.0,0.00013273,2]
[400165778,1767165038620,-500.0,0.00013273,2]
[400165779,1767165038635,-500.0,0.00013273,2]
[400165780,1767165038647,-500.0,0.00013273,2]
[400165781,1767165038659,-500.0,0.00013273,2]
[400165782,1767165038670,-500.0,0.00013273,2]
[400165783,1767165038682,-500.0,0.00013273,2]
[400165784,1767165038693,-500.0,0.00013273,2]
[400165785,1767165038704,-500.0,0.00013273,2]
[400165786,1767165038716,-500.0,0.00013273,2]
[400165787,1767165038727,-500.0,0.00013273,2]
[400165788,1767165038738,-500.0,0.00013273,2]
[400165789,1767165038750,-413.99757981,0.00013273,2]
[400165790,1767165038761,-500.0,0.00013273,2]
[400165791,1767165038772,-500.0,0.00013273,2]
[400165792,1767165038783,-500.0,0.00013273,2]
[400165793,1767165038794,-315.88685405,0.00013273,2]
[400165794,1767165038804,-500.0,0.00013273,2]
[400165795,1767165038815,-500.0,0.00013273,2]
[400165796,1767165038826,-500.0,0.00013273,2]
[400165797,1767165038836,-500.0,0.00013273,2]
[400165798,1767165038848,-500.0,0.00013273,2]
[400165799,1767165038859,-500.0,0.00013273,2]
[400165800,1767165038869,-500.0,0.00013273,2]
[400165801,1767165038880,-500.0,0.00013273,2]
[400165802,1767165038890,-500.0,0.00013273,2]
[400165803,1767165038901,-500.0,0.00013273,2]
[400165804,1767165038912,-602.47879957,0.00013273,2]
[400165805,1767165038923,-500.0,0.00013273,2]
[400165806,1767165038934,-500.0,0.00013273,2]
[400165807,1767165038946,-500.0,0.00013273,2]
[400165808,1767165038957,-500.0,0.00013273,2]
[400165809,1767165038968,-500.0,0.00013273,2]
[400165810,1767165038980,-500.0,0.00013273,2]
[400165811,1767165038990,-390.64225667,0.0001341,2]
[400165812,1767165039001,-1738.96873239,0.00013586,2]
[400165813,1767165039012,-587.0,0.00013648,2]
[400165814,1767165039023,-300.0,0.00013673,2]
[400165815,1767165039035,-1000.0,0.00013698,2]
[400165816,1767165039046,-1000.0,0.00013698,2]
[400165817,1767165039056,-1000.0,0.00013698,2]
[400165818,1767165039067,-1000.0,0.00013698,2]
[400165819,1767165039078,-1000.0,0.00013698,2]
[400165820,1767165039089,-1000.0,0.00013698,2]
[400165821,1767165039100,-1000.0,0.00013698,2]
[400165822,1767165039111,-1008.34593737,0.00013698,2]
[400165823,1767165039123,-606.03,0.00013698,2]
[400165824,1767165039134,-606.03,0.00013698,2]
[400165825,1767165039146,-606.03,0.00013698,2]
[400165826,1767165039157,-606.03,0.00013698,2]
[400165827,1767165039168,-606.03,0.00013698,2]
[400165828,1767165039179,-606.03,0.00013698,2]
[400165829,1767165039191,-606.03,0.00013698,2]
[400165830,1767165039202,-606.03,0.00013698,2]
[400165831,1767165039213,-606.03,0.00013698,2]
[400165832,1767165039224,-606.03,0.00013698,2]
[400165833,1767165039235,-606.03,0.00013698,2]
[400165834,1767165039245,-606.03,0.00013698,2]
[400165835,1767165039256,-606.03,0.00013698,2]
[400165836,1767165039268,-606.03,0.00013698,2]
[400165837,1767165039279,-606.03,0.00013698,2]
[400165838,1767165039290,-606.03,0.00013698,2]
[400165839,1767165039301,-606.03,0.00013698,2]
[400165840,1767165039312,-606.03,0.00013698,2]
[400165841,1767165039324,-606.03,0.00013698,2]
[400165842,1767165039336,-606.03,0.00013698,2]
[400165843,1767165039345,-606.03,0.00013698,2]
[400165844,1767165039354,-606.03,0.00013698,2]
[400165845,1767165039364,-606.03,0.00013698,2]
[400165846,1767165039373,-606.06539147,0.00013698,2]
[400165847,1767165039383,-500.0,0.00013698,2]
[400165848,1767165039393,-500.0,0.00013698,2]
[400165849,1767165039402,-500.0,0.00013698,2]
[400165850,1767165039412,-500.0,0.00013698,2]
[400165851,1767165039605,-500.0,0.00013698,2]
[400165852,1767165039625,-500.0,0.00013698,2]
[400165853,1767165039635,-500.0,0.00013698,2]
[400165854,1767165039644,-500.0,0.00013698,2]
[400165855,1767165039653,-500.0,0.00013698,2]
[400165856,1767165039663,-500.0,0.00013698,2]
[400165858,1767165039672,-500.0,0.00013698,2]
[400165859,1767165039682,-500.0,0.00013698,2]
[400165860,1767165039691,-500.0,0.00013698,2]
[400165861,1767165039700,-500.0,0.00013698,2]
[400165862,1767165039709,-500.0,0.00013698,2]
[400165863,1767165039718,-500.0,0.00013698,2]
[400165864,1767165039727,-500.0,0.00013698,2]
[400165865,1767165039737,-500.0,0.00013698,2]
[400165866,1767165039746,-500.0,0.00013698,2]
[400165867,1767165039755,-500.0,0.00013698,2]
[400165868,1767165039764,-500.0,0.00013698,2]
[400165869,1767165039774,-500.0,0.00013698,2]
[400165870,1767165039782,-500.0,0.00013698,2]
[400165871,1767165039792,-482.71,0.00013698,2]
[400165872,1767165039801,-500.0,0.00013698,2]
[400165873,1767165039810,-262.16767073,0.00013698,2]
[400165874,1767165039819,-111233.6717494,0.00013699,2]
[400165875,1767165039828,-4354.831945,0.00013699,2]
[400165876,1767165039838,-500.0,0.00013699,2]
[400165877,1767165039847,-500.0,0.00013699,2]
[400165878,1767165039857,-500.0,0.00013699,2]
[400165879,1767165039866,-160.15137988,0.00013699,2]
[400165880,1767165039875,-500.0,0.00013699,2]
[400165881,1767165039885,-500.0,0.00013699,2]
[400165882,1767165039894,-500.0,0.00013699,2]
[400165883,1767165039903,-500.0,0.00013699,2]
[400165884,1767165039912,-500.0,0.00013699,2]
[400165885,1767165039921,-500.0,0.00013699,2]
[400165886,1767165039931,-500.0,0.00013699,2]
[400165887,1767165039939,-500.0,0.00013699,2]
[400165888,1767165039949,-500.0,0.00013699,2]
[400165889,1767165039958,-500.0,0.00013699,2]
[400165890,1767165039967,-500.0,0.00013699,2]
[400165891,1767165039976,-500.0,0.00013699,2]
[400165892,1767165039985,-150.35034149,0.00013699,2]
[400165893,1767165039994,-500.0,0.00013699,2]
[400165894,1767165040004,-500.0,0.00013699,2]
[400165895,1767165040014,-303.93264249,0.00013699,2]
[400165896,1767165040024,-500.0,0.00013699,2]
[400165897,1767165040033,-500.0,0.00013699,2]
[400165898,1767165040043,-587.30545204,0.00013699,2]
[400165899,1767165040052,-500.0,0.00013699,2]
[400165900,1767165040062,-500.0,0.00013699,2]
[400165901,1767165040071,-500.0,0.00013699,2]
[400165902,1767165040080,-500.0,0.00013699,2]
[400165903,1767165040089,-500.0,0.00013699,2]
[400165904,1767165040098,-565.555714,0.00013699,2]
[400165905,1767165040108,-500.0,0.00013699,2]
[400165906,1767165040117,-500.0,0.00013699,2]
[400165907,1767165040127,-500.0,0.00013699,2]
[400165908,1767165040137,-500.0,0.00013699,2]
[400165909,1767165040150,-500.0,0.00013699,2]
[400165910,1767165040159,-500.0,0.00013699,2]
[400165911,1767165040168,-500.0,0.00013699,2]
[400165912,1767165040177,-500.0,0.00013699,2]
[400165913,1767165040186,-165.03764715,0.00013699,2]
[400165914,1767165040196,-237.8458189,0.00013699,2]
[400165915,1767165040205,-500.0,0.00013699,2]
[400165917,1767165040215,-500.0,0.00013699,2]
[400165919,1767165040224,-158.38533297,0.00013699,2]
[400165920,1767165040233,-500.0,0.00013699,2]
[400165921,1767165040242,-158.39206841,0.00013699,2]
[400165922,1767165040252,-500.0,0.00013699,2]
[400165923,1767165040261,-416.75445415,0.00013699,2]
[400165924,1767165040271,-500.0,0.00013699,2]
[400165925,1767165040281,-500.0,0.00013699,2]
[400165926,1767165040291,-260.2481779,0.00013699,2]
[400165927,1767165040301,-158.18512013,0.00013699,2]
[400165928,1767165040311,-158.38886572,0.00013699,2]
[400165930,1767165040325,-500.0,0.00013699,2]
[400165931,1767165040335,-346.46150426,0.00013699,2]
[400165932,1767165040345,-242.87306652,0.00013699,2]
[400165933,1767165040354,-500.0,0.00013699,2]
[400165934,1767165040365,-500.0,0.00013699,2]
[400165935,1767165040374,-157.18386067,0.00013699,2]
[400165936,1767165040384,-500.0,0.00013699,2]
[400165937,1767165040394,-298.53483888,0.00013699,2]
[400165938,1767165040404,-260.28159851,0.00013699,2]
[400165939,1767165040414,-500.0,0.00013699,2]
[400165940,1767165040424,-160.18745103,0.00013699,2]
[400165941,1767165040434,-158.38534191,0.00013699,2]
[400165942,1767165040446,-158.38532202,0.00013699,2]
[400165943,1767165040456,-158.18512633,0.00013699,2]
[400165944,1767165040466,-188.42009972,0.00013699,2]
[400165945,1767165040475,-158.38534385,0.00013699,2]
[400165946,1767165040485,-158.38534465,0.00013699,2]
[400165947,1767165040495,-500.0,0.00013699,2]
[400165948,1767165040506,-500.0,0.00013699,2]
[400165949,1767165040516,-500.0,0.00013699,2]
[400165950,1767165040525,-159.68059141,0.00013699,2]
[400165951,1767165040534,-500.0,0.00013699,2]
[400165952,1767165040544,-500.0,0.00013699,2]
[400165953,1767165040553,-178.08460977,0.00013699,2]
[400165954,1767165040563,-500.0,0.00013699,2]
[400165955,1767165040572,-500.0,0.00013699,2]
[400165956,1767165040582,-500.0,0.00013699,2]
[400165957,1767165040592,-500.0,0.00013699,2]
[400165958,1767165040601,-500.0,0.00013699,2]
[400165959,1767165040611,-500.0,0.00013699,2]
[400165960,1767165040620,-160.3309554,0.00013699,2]
[400165961,1767165040630,-500.0,0.00013699,2]
[400165962,1767165040639,-500.0,0.00013699,2]
[400165963,1767165040649,-500.0,0.00013699,2]
[400165964,1767165040658,-500.0,0.00013699,2]
[400165965,1767165040668,-158.3853059,0.00013699,2]
[400165966,1767165040677,-500.0,0.00013699,2]
[400165967,1767165040687,-307.59957655,0.00013699,2]
[400165968,1767165040697,-500.0,0.00013699,2]
[400165969,1767165040707,-500.0,0.00013699,2]
[400165970,1767165040716,-540.63230604,0.00013699,2]
[400165971,1767165040726,-500.0,0.00013699,2]
[400165972,1767165040735,-500.0,0.00013699,2]
[400165973,1767165040744,-500.0,0.00013699,2]
[400165974,1767165040753,-500.0,0.00013699,2]
[400165975,1767165040763,-500.0,0.00013699,2]
[400165976,1767165040772,-500.0,0.00013699,2]
[400165977,1767165040781,-500.0,0.00013699,2]
[400165978,1767165040791,-500.0,0.00013699,2]
[400165979,1767165040800,-500.0,0.00013699,2]
[400165980,1767165040809,-500.0,0.00013699,2]
[400165981,1767165040819,-500.0,0.00013699,2]
[400165982,1767165040828,-309.28633635,0.00013699,2]
[400165983,1767165040838,-500.0,0.00013699,2]
[400165984,1767165040847,-163.65866633,0.00013699,2]
[400165985,1767165040856,-500.57498562,0.00013699,2]
[400165986,1767165040866,-500.0,0.00013699,2]
[400165987,1767165040875,-500.0,0.00013699,2]
[400165988,1767165040885,-158.10807846,0.00013699,2]
[400165989,1767165040894,-500.0,0.00013699,2]
[400165990,1767165040904,-500.0,0.00013699,2]
[400165991,1767165040913,-500.0,0.00013699,2]
[400165992,1767165040923,-500.0,0.00013699,2]
[400165993,1767165040932,-500.0,0.00013699,2]
[400165994,1767165040941,-2351.0,0.00013765,2]
[400165995,1767165040950,-1000.0,0.00013821,2]
[400165996,1767165040960,-1000.0,0.00013821,2]
[400165997,1767165040969,-1000.0,0.00013821,2]
[400165998,1767165040979,-1000.0,0.00013821,2]
[400165999,1767165040988,-1000.0,0.00013821,2]
[400166000,1767165040998,-1000.0,0.00013821,2]
[400166001,1767165041007,-561.98334321,0.00013821,2]
[400166002,1767165041017,-696.20087533,0.00013821,2]
[400166003,1767165041026,-1000.0,0.00013821,2]
[400166004,1767165041035,-1000.0,0.00013821,2]
[400166005,1767165041045,-1000.0,0.00013821,2]
[400166006,1767165041054,-1000.0,0.00013821,2]
[400166007,1767165041063,-1000.0,0.00013821,2]
[400166008,1767165041072,-1000.0,0.00013821,2]
[400166009,1767165041082,-1000.0,0.00013821,2]
[400166010,1767165041092,-1000.0,0.00013821,2]
[400166011,1767165041101,-1000.0,0.00013821,2]
[400166012,1767165041110,-1000.0,0.00013821,2]
[400166013,1767165041120,-1000.0,0.00013821,2]
[400166014,1767165041129,-1000.0,0.00013821,2]
[400166015,1767165041139,-1000.0,0.00013821,2]
[400166016,1767165041148,-1000.0,0.00013821,2]
[400166017,1767165041158,-1000.0,0.00013821,2]
[400166018,1767165041167,-1000.0,0.00013821,2]
[400166019,1767165041177,-1000.0,0.00013821,2]
[400166020,1767165041186,-1000.0,0.00013821,2]
[400166021,1767165041196,-1000.0,0.00013821,2]
[400166022,1767165041205,-349.3977641,0.00013821,2]
[400166023,1767165041215,-1000.0,0.00013821,2]
[400166024,1767165041224,-1000.0,0.00013821,2]
[400166025,1767165041234,-190.31177109,0.00013821,2]
[400166026,1767165041243,-1000.0,0.00013821,2]
[400166027,1767165041254,-1000.0,0.00013821,2]
[400166028,1767165041263,-1000.0,0.00013821,2]
[400166029,1767165041273,-1000.0,0.00013821,2]
[400166030,1767165041283,-1000.0,0.00013821,2]
[400166031,1767165041292,-1000.0,0.00013821,2]
[400166032,1767165041302,-1000.0,0.00013821,2]
[400166033,1767165041311,-3026.79,0.00013824,2]
[400166034,1767165041320,-273.66907051,0.00013937,2]
[400166035,1767165041330,-163.51788502,0.00013973,2]
[400166036,1767165041340,-444.6941461,0.00014044,2]
[400166037,1767165041350,-864.0,0.00014081,2]
[400166038,1767165041360,-402.16983495,0.00014161,2]
[400166039,1767165041369,-600.0,0.00014221,2]
[400166040,1767165041379,-1000.0,0.00014247,2]
[400166041,1767165041388,-1000.0,0.00014247,2]
[400166042,1767165041398,-251.84601956,0.00014247,2]
[400166043,1767165041408,-1000.0,0.00014247,2]
[400166044,1767165041418,-1002.4340095,0.00014247,2]
[400166045,1767165041427,-1000.0,0.00014247,2]
[400166046,1767165041436,-1000.0,0.00014247,2]
[400166047,1767165041445,-1000.0,0.00014247,2]
[400166048,1767165041455,-1000.0,0.00014247,2]
[400166049,1767165041464,-1000.0,0.00014247,2]
[400166050,1767165041474,-1000.0,0.00014247,2]
[400166051,1767165041484,-433.15519118,0.00014247,2]
[400166052,1767165041493,-1000.0,0.00014247,2]
[400166053,1767165041503,-1000.0,0.00014247,2]
[400166054,1767165041512,-1000.0,0.00014247,2]
[400166055,1767165041522,-1000.0,0.00014247,2]
[400166056,1767165041532,-1000.0,0.00014247,2]
[400166057,1767165041543,-1000.0,0.00014247,2]
[400166058,1767165041554,-297.63479171,0.00014247,2]
[400166059,1767165041564,-500.48099046,0.00014247,2]
[400166060,1767165041574,-1000.0,0.00014247,2]
[400166061,1767165041584,-1000.0,0.00014247,2]
[400166062,1767165041593,-609.17214565,0.00014247,2]
[400166063,1767165041603,-1000.0,0.00014247,2]
[400166064,1767165041613,-500.68443154,0.00014247,2]
[400166065,1767165041623,-1000.0,0.00014247,2]
[400166066,1767165041632,-1000.0,0.00014247,2]
[400166067,1767165041643,-1000.0,0.00014247,2]
[400166068,1767165041653,-1000.0,0.00014247,2]
[400166069,1767165041662,-1000.0,0.00014247,2]
[400166070,1767165041672,-1005.9697834,0.00014247,2]
[400166071,1767165041682,-1000.0,0.00014247,2]
[400166072,1767165041691,-1000.0,0.00014247,2]
[400166073,1767165041700,-1000.0,0.00014247,2]
[400166074,1767165041710,-1000.0,0.00014247,2]
[400166075,1767165041719,-1000.0,0.00014247,2]
[400166076,1767165041729,-1000.0,0.00014247,2]
[400166077,1767165041738,-1000.75482131,0.00014247,2]
[400166078,1767165041748,-1000.0,0.00014247,2]
[400166079,1767165041758,-688.75934812,0.00014247,2]
[400166080,1767165041767,-1000.0,0.00014247,2]
[400166081,1767165041776,-495.63847364,0.00014247,2]
[400166082,1767165041786,-1000.0,0.00014247,2]
[400166083,1767165041796,-1000.0,0.00014247,2]